[Event "Titled Tuesday Blitz October 25 Late 2022"]
[White "Sarkar, Justin"]
[Black "Nozdrachev, Leonid"]
[WhiteFideId "2010011"]
[BlackFideId "24113433"]
[WhiteElo "2250"]
[BlackElo "2249"]
[Result "1-0"]
[Round "05"]
[TimeControl "180+1"]
[Date "2022.10.26"]
[WhiteClock "0:00:02"]
[BlackClock "0:00:56"]

1. d4 {[%clk 0:02:52]}  e5 {[%clk 0:02:58]} 2. dxe5 {[%clk 0:02:48]}  Nc6 {[%clk 0:02:59]} 3. Nf3 {[%clk 0:02:46]}  Qe7 {[%clk 0:02:59]} 4. Qd5 {[%clk 0:02:37]}  f6 {[%clk 0:02:53]} 5. exf6 {[%clk 0:02:35]}  Nxf6 {[%clk 0:02:54]} 6. Qb3 {[%clk 0:02:34]}  Qb4+ {[%clk 0:02:49]} 7. Qxb4 {[%clk 0:02:21]}  Nxb4 {[%clk 0:02:50]} 8. Na3 {[%clk 0:02:20]}  d5 {[%clk 0:02:49]} 9. c3 {[%clk 0:02:12]}  Nc6 {[%clk 0:02:49]} 10. Nb5 {[%clk 0:02:11]}  Kd7 {[%clk 0:02:35]} 11. Bf4 {[%clk 0:02:08]}  Ne8 {[%clk 0:02:35]} 12. O-O-O {[%clk 0:02:04]}  a6 {[%clk 0:02:33]} 13. Rxd5+ {[%clk 0:01:37]}  Ke6 {[%clk 0:02:32]} 14. Ng5+ {[%clk 0:01:35]}  Kxd5 {[%clk 0:02:29]} 15. e4+ {[%clk 0:01:33]}  Kc5 {[%clk 0:02:24]} 16. Be3+ {[%clk 0:01:29]}  Nd4 {[%clk 0:02:18]} 17. Nxd4 {[%clk 0:01:21]}  Kb6 {[%clk 0:02:10]} 18. Nf7 {[%clk 0:00:26]}  Rg8 {[%clk 0:02:09]} 19. Bc4 {[%clk 0:00:26]}  Bc5 {[%clk 0:02:01]} 20. b4 {[%clk 0:00:22]}  Bxd4 {[%clk 0:02:00]} 21. Bxd4+ {[%clk 0:00:22]}  c5 {[%clk 0:02:01]} 22. bxc5+ {[%clk 0:00:15]}  Ka5 {[%clk 0:01:58]} 23. Nd6 {[%clk 0:00:14]}  Rf8 {[%clk 0:01:52]} 24. Rd1 {[%clk 0:00:12]}  Nxd6 {[%clk 0:01:33]} 25. cxd6 {[%clk 0:00:12]}  Bd7 {[%clk 0:01:34]} 26. Rd2 {[%clk 0:00:10]}  Rac8 {[%clk 0:01:33]} 27. Bd5 {[%clk 0:00:09]}  b5 {[%clk 0:01:29]} 28. e5 {[%clk 0:00:07]}  Rfe8 {[%clk 0:01:27]} 29. f4 {[%clk 0:00:06]}  g6 {[%clk 0:01:26]} 30. Kb2 {[%clk 0:00:06]}  b4 {[%clk 0:01:25]} 31. cxb4+ {[%clk 0:00:03]}  Kxb4 {[%clk 0:01:26]} 32. a3+ {[%clk 0:00:03]}  Kb5 {[%clk 0:01:26]} 33. Re2 {[%clk 0:00:02]}  Be6 {[%clk 0:01:25]} 34. Bxe6 {[%clk 0:00:02]}  Rxe6 {[%clk 0:01:26]} 35. g4 {[%clk 0:00:02]}  Rf8 {[%clk 0:01:24]} 36. Re4 {[%clk 0:00:01]}  Kc6 {[%clk 0:01:23]} 37. Be3 {[%clk 0:00:01]}  Rxf4 {[%clk 0:01:21]} 38. Rxf4 {[%clk 0:00:01]}  Rxe5 {[%clk 0:01:21]} 39. Bd4 {[%clk 0:00:02]}  Re2+ {[%clk 0:01:21]} 40. Kc3 {[%clk 0:00:02]}  Kxd6 {[%clk 0:01:21]} 41. Rf7 {[%clk 0:00:02]}  Rxh2 {[%clk 0:01:18]} 42. Ra7 {[%clk 0:00:02]}  Rh3+ {[%clk 0:01:17]} 43. Kc4 {[%clk 0:00:01]}  Kc6 {[%clk 0:01:11]} 44. Rxa6+ {[%clk 0:00:02]}  Kb7 {[%clk 0:01:12]} 45. Ra7+ {[%clk 0:00:02]}  Kb8 {[%clk 0:01:12]} 46. a4 {[%clk 0:00:02]}  Rg3 {[%clk 0:01:11]} 47. Ra6 {[%clk 0:00:02]}  Rxg4 {[%clk 0:01:10]} 48. a5 {[%clk 0:00:02]}  h5 {[%clk 0:01:10]} 49. Rb6+ {[%clk 0:00:02]}  Ka8 {[%clk 0:01:10]} 50. a6 {[%clk 0:00:03]}  h4 {[%clk 0:01:09]} 51. Re6 {[%clk 0:00:02]}  Kb8 {[%clk 0:00:59]} 52. Re8+ {[%clk 0:00:03]}  Kc7 {[%clk 0:00:58]} 53. a7 {[%clk 0:00:03]}  Rg1 {[%clk 0:00:54]} 54. a8=Q {[%clk 0:00:03]}  Rc1+ {[%clk 0:00:55]} 55. Bc3 {[%clk 0:00:03]}  Kd6 {[%clk 0:00:54]} 56. Qa6+ {[%clk 0:00:02]}  Kd7 {[%clk 0:00:54]} 57. Qe6+ {[%clk 0:00:02]}  Kc7 {[%clk 0:00:54]} 58. Rc8+ {[%clk 0:00:01]}  Kb7 {[%clk 0:00:55]} 59. Qc6+ {[%clk 0:00:02]}  Ka7 {[%clk 0:00:56]} 60. Ra8# {[%clk 0:00:02]} 1-0


[Site "https://www.chess.com"]

[Event "Titled Tuesday Blitz October 25 Late 2022"]
[White "Saucey, Michel"]
[Black "Vlassov, Nikolai"]
[WhiteFideId "601845"]
[BlackFideId "4103360"]
[WhiteElo "2253"]
[BlackElo "2324"]
[Result "1/2-1/2"]
[Round "05"]
[TimeControl "180+1"]
[Date "2022.10.26"]
[WhiteClock "0:00:04"]
[BlackClock "0:00:12"]

1. d4 {[%clk 0:02:15]}  Nf6 {[%clk 0:02:59]} 2. Nf3 {[%clk 0:02:12]}  e6 {[%clk 0:02:58]} 3. c4 {[%clk 0:02:11]}  Nc6 {[%clk 0:02:58]} 4. a3 {[%clk 0:02:10]}  g6 {[%clk 0:02:57]} 5. Nc3 {[%clk 0:02:10]}  Bg7 {[%clk 0:02:57]} 6. g3 {[%clk 0:02:10]}  O-O {[%clk 0:02:57]} 7. Bg2 {[%clk 0:02:11]}  d6 {[%clk 0:02:56]} 8. O-O {[%clk 0:02:10]}  e5 {[%clk 0:02:57]} 9. d5 {[%clk 0:02:08]}  Ne7 {[%clk 0:02:56]} 10. e4 {[%clk 0:02:08]}  Ne8 {[%clk 0:02:55]} 11. Ne1 {[%clk 0:02:06]}  f5 {[%clk 0:02:55]} 12. Nd3 {[%clk 0:02:07]}  Nf6 {[%clk 0:02:53]} 13. Bg5 {[%clk 0:02:05]}  Bd7 {[%clk 0:02:48]} 14. Qd2 {[%clk 0:02:04]}  Kh8 {[%clk 0:02:45]} 15. Rae1 {[%clk 0:02:01]}  Neg8 {[%clk 0:02:41]} 16. f4 {[%clk 0:01:54]}  exf4 {[%clk 0:02:33]} 17. Nxf4 {[%clk 0:01:51]}  Qc8 {[%clk 0:02:11]} 18. exf5 {[%clk 0:01:47]}  Bxf5 {[%clk 0:02:10]} 19. Ne6 {[%clk 0:01:45]}  Bxe6 {[%clk 0:02:08]} 20. Rxe6 {[%clk 0:01:41]}  Nd7 {[%clk 0:02:03]} 21. Nb5 {[%clk 0:01:27]}  Rxf1+ {[%clk 0:01:41]} 22. Bxf1 {[%clk 0:01:26]}  Ne5 {[%clk 0:01:41]} 23. Qe2 {[%clk 0:01:15]}  a6 {[%clk 0:01:38]} 24. Nd4 {[%clk 0:01:14]}  Qf8 {[%clk 0:01:32]} 25. Bg2 {[%clk 0:01:12]}  Qf7 {[%clk 0:01:27]} 26. Nf3 {[%clk 0:01:05]}  Rf8 {[%clk 0:01:22]} 27. Nxe5 {[%clk 0:01:01]}  Bxe5 {[%clk 0:01:22]} 28. Rxe5 {[%clk 0:00:51]}  dxe5 {[%clk 0:01:21]} 29. Qxe5+ {[%clk 0:00:51]}  Qg7 {[%clk 0:01:21]} 30. Bf4 {[%clk 0:00:42]}  Rf7 {[%clk 0:01:14]} 31. Bh3 {[%clk 0:00:38]}  h6 {[%clk 0:01:07]} 32. Be6 {[%clk 0:00:37]}  Re7 {[%clk 0:01:00]} 33. c5 {[%clk 0:00:30]}  g5 {[%clk 0:00:57]} 34. Qxg7+ {[%clk 0:00:28]}  Kxg7 {[%clk 0:00:57]} 35. Be5+ {[%clk 0:00:29]}  Nf6 {[%clk 0:00:57]} 36. g4 {[%clk 0:00:21]}  Kg6 {[%clk 0:00:54]} 37. Bf5+ {[%clk 0:00:20]}  Kf7 {[%clk 0:00:54]} 38. Be6+ {[%clk 0:00:20]}  Kg6 {[%clk 0:00:53]} 39. Bf5+ {[%clk 0:00:20]}  Kf7 {[%clk 0:00:53]} 40. Be6+ {[%clk 0:00:20]}  Rxe6 {[%clk 0:00:50]} 41. dxe6+ {[%clk 0:00:20]}  Kxe6 {[%clk 0:00:50]} 42. Bxc7 {[%clk 0:00:20]}  Nxg4 {[%clk 0:00:50]} 43. b4 {[%clk 0:00:17]}  Kd5 {[%clk 0:00:45]} 44. h3 {[%clk 0:00:11]}  Ne3 {[%clk 0:00:44]} 45. Kf2 {[%clk 0:00:09]}  Nc2 {[%clk 0:00:44]} 46. Kf3 {[%clk 0:00:08]}  h5 {[%clk 0:00:35]} 47. Bd8 {[%clk 0:00:06]}  g4+ {[%clk 0:00:35]} 48. hxg4 {[%clk 0:00:05]}  hxg4+ {[%clk 0:00:36]} 49. Kxg4 {[%clk 0:00:04]}  Nxa3 {[%clk 0:00:36]} 50. Kf4 {[%clk 0:00:04]}  Nc2 {[%clk 0:00:35]} 51. Ba5 {[%clk 0:00:03]}  Kc4 {[%clk 0:00:35]} 52. Ke5 {[%clk 0:00:04]}  Nxb4 {[%clk 0:00:35]} 53. Kd6 {[%clk 0:00:04]}  Nd3 {[%clk 0:00:29]} 54. c6 {[%clk 0:00:03]}  bxc6 {[%clk 0:00:23]} 55. Kxc6 {[%clk 0:00:04]}  Nc5 {[%clk 0:00:16]} 56. Kb6 {[%clk 0:00:04]}  Kd5 {[%clk 0:00:14]} 57. Bb4 {[%clk 0:00:04]}  Nd3 {[%clk 0:00:12]} 58. Kxa6 {[%clk 0:00:04]} 1/2-1/2


[Site "https://www.chess.com"]

[Event "Titled Tuesday Blitz October 25 Late 2022"]
[White "Shipov, Sergei"]
[Black "Ferreira, Vitor Hugo Vieira"]
[WhiteFideId "4113624"]
[BlackFideId "2119765"]
[WhiteElo "2746"]
[BlackElo "2168"]
[Result "1-0"]
[Round "05"]
[TimeControl "180+1"]
[Date "2022.10.26"]
[WhiteClock "0:01:53"]
[BlackClock "0:01:39"]

1. d4 {[%clk 0:03:00]}  Nf6 {[%clk 0:02:58]} 2. c4 {[%clk 0:03:00]}  e6 {[%clk 0:02:58]} 3. Nc3 {[%clk 0:03:00]}  Bb4 {[%clk 0:02:58]} 4. Qc2 {[%clk 0:03:00]}  O-O {[%clk 0:02:57]} 5. a3 {[%clk 0:03:00]}  Bxc3+ {[%clk 0:02:55]} 6. Qxc3 {[%clk 0:03:01]}  d6 {[%clk 0:02:54]} 7. f3 {[%clk 0:03:01]}  c5 {[%clk 0:02:52]} 8. dxc5 {[%clk 0:02:59]}  dxc5 {[%clk 0:02:51]} 9. Bf4 {[%clk 0:03:00]}  Nc6 {[%clk 0:02:51]} 10. Rd1 {[%clk 0:02:59]}  Bd7 {[%clk 0:02:50]} 11. e3 {[%clk 0:02:56]}  Re8 {[%clk 0:02:49]} 12. Ne2 {[%clk 0:02:51]}  e5 {[%clk 0:02:50]} 13. Bg5 {[%clk 0:02:51]}  h6 {[%clk 0:02:49]} 14. Bxf6 {[%clk 0:02:51]}  gxf6 {[%clk 0:02:47]} 15. g4 {[%clk 0:02:50]}  Qe7 {[%clk 0:02:45]} 16. Ng3 {[%clk 0:02:49]}  Be6 {[%clk 0:02:44]} 17. Bd3 {[%clk 0:02:49]}  Rad8 {[%clk 0:02:41]} 18. Kf2 {[%clk 0:02:48]}  e4 {[%clk 0:02:28]} 19. Nxe4 {[%clk 0:02:39]}  Ne5 {[%clk 0:02:27]} 20. Be2 {[%clk 0:02:39]}  h5 {[%clk 0:02:14]} 21. g5 {[%clk 0:02:29]}  Bf5 {[%clk 0:02:10]} 22. Nxf6+ {[%clk 0:02:29]}  Kf8 {[%clk 0:02:09]} 23. h4 {[%clk 0:02:10]}  Rxd1 {[%clk 0:02:07]} 24. Rxd1 {[%clk 0:02:10]}  Ng6 {[%clk 0:02:04]} 25. Nxe8 {[%clk 0:02:07]}  Kxe8 {[%clk 0:02:00]} 26. Qf6 {[%clk 0:02:05]}  Qc7 {[%clk 0:01:58]} 27. f4 {[%clk 0:02:02]}  Nxh4 {[%clk 0:01:52]} 28. Bxh5 {[%clk 0:02:00]}  Bg6 {[%clk 0:01:46]} 29. Bg4 {[%clk 0:01:56]}  Bc2 {[%clk 0:01:41]} 30. Qh8+ {[%clk 0:01:55]}  Ke7 {[%clk 0:01:41]} 31. Rd7+ {[%clk 0:01:54]}  Qxd7 {[%clk 0:01:40]} 32. Bxd7 {[%clk 0:01:55]}  Ng6 {[%clk 0:01:39]} 33. Qc3 {[%clk 0:01:53]} 1-0


[Site "https://www.chess.com"]

[Event "Titled Tuesday Blitz October 25 Late 2022"]
[White "Sokolovsky, Yahli"]
[Black "Barbero Sendic, Alejandro"]
[WhiteFideId "2820242"]
[BlackFideId "3001288"]
[WhiteElo "2316"]
[BlackElo "2314"]
[Result "1-0"]
[Round "05"]
[TimeControl "180+1"]
[Date "2022.10.26"]
[WhiteClock "0:00:24"]
[BlackClock "0:00:03"]

1. b3 {[%clk 0:03:00]}  d5 {[%clk 0:02:58]} 2. e3 {[%clk 0:03:01]}  Bf5 {[%clk 0:02:59]} 3. Bb2 {[%clk 0:03:01]}  e6 {[%clk 0:02:58]} 4. d4 {[%clk 0:03:01]}  Nf6 {[%clk 0:02:53]} 5. Bd3 {[%clk 0:03:02]}  Nbd7 {[%clk 0:02:32]} 6. Ne2 {[%clk 0:03:02]}  Bd6 {[%clk 0:02:31]} 7. Ng3 {[%clk 0:03:02]}  Bg6 {[%clk 0:02:31]} 8. O-O {[%clk 0:03:02]}  O-O {[%clk 0:02:30]} 9. Bxg6 {[%clk 0:03:03]}  hxg6 {[%clk 0:02:31]} 10. c4 {[%clk 0:03:03]}  c6 {[%clk 0:02:31]} 11. Nc3 {[%clk 0:03:03]}  Bb4 {[%clk 0:02:19]} 12. Qe2 {[%clk 0:02:53]}  Re8 {[%clk 0:02:17]} 13. f4 {[%clk 0:02:51]}  Rc8 {[%clk 0:02:12]} 14. c5 {[%clk 0:02:51]}  Bxc3 {[%clk 0:02:09]} 15. Bxc3 {[%clk 0:02:51]}  b6 {[%clk 0:02:10]} 16. b4 {[%clk 0:02:51]}  Ne4 {[%clk 0:02:07]} 17. Nxe4 {[%clk 0:02:45]}  dxe4 {[%clk 0:02:07]} 18. Kh1 {[%clk 0:02:32]}  Nf6 {[%clk 0:02:07]} 19. a3 {[%clk 0:02:33]}  Nd5 {[%clk 0:02:06]} 20. Bb2 {[%clk 0:02:33]}  a5 {[%clk 0:02:03]} 21. bxa5 {[%clk 0:02:26]}  bxa5 {[%clk 0:02:02]} 22. a4 {[%clk 0:02:22]}  Rb8 {[%clk 0:02:02]} 23. Bc1 {[%clk 0:02:20]}  Rb3 {[%clk 0:01:58]} 24. Bd2 {[%clk 0:02:21]}  Rb2 {[%clk 0:01:54]} 25. Qe1 {[%clk 0:02:19]}  Qa8 {[%clk 0:01:35]} 26. Bxa5 {[%clk 0:02:19]}  Reb8 {[%clk 0:01:29]} 27. Bb6 {[%clk 0:02:11]}  Nxb6 {[%clk 0:01:23]} 28. cxb6 {[%clk 0:02:12]}  R8xb6 {[%clk 0:01:23]} 29. a5 {[%clk 0:02:10]}  R6b3 {[%clk 0:01:21]} 30. a6 {[%clk 0:02:08]}  Qa7 {[%clk 0:01:15]} 31. Qa5 {[%clk 0:02:07]}  Rb6 {[%clk 0:00:45]} 32. Rfc1 {[%clk 0:01:57]}  Re2 {[%clk 0:00:41]} 33. Qa3 {[%clk 0:01:50]}  Rbb2 {[%clk 0:00:32]} 34. Qd6 {[%clk 0:01:15]}  Rxg2 {[%clk 0:00:23]} 35. Qd8+ {[%clk 0:01:15]}  Kh7 {[%clk 0:00:23]} 36. Qh4+ {[%clk 0:01:16]}  Kg8 {[%clk 0:00:23]} 37. Rxc6 {[%clk 0:01:17]}  Rgc2 {[%clk 0:00:12]} 38. Rd6 {[%clk 0:00:43]}  Rxh2+ {[%clk 0:00:10]} 39. Qxh2 {[%clk 0:00:42]}  Rxh2+ {[%clk 0:00:11]} 40. Kxh2 {[%clk 0:00:43]}  Qe7 {[%clk 0:00:12]} 41. Kg3 {[%clk 0:00:28]}  Qa7 {[%clk 0:00:03]} 42. Rd7 {[%clk 0:00:24]} 1-0


[Site "https://www.chess.com"]

[Event "Titled Tuesday Blitz October 25 Late 2022"]
[White "Storey, Charles H"]
[Black "Pakleza, Zbigniew"]
[WhiteFideId "406686"]
[BlackFideId "1119290"]
[WhiteElo "2252"]
[BlackElo "2411"]
[Result "1-0"]
[Round "05"]
[TimeControl "180+1"]
[Date "2022.10.26"]
[WhiteClock "0:00:22"]
[BlackClock "0:00:01"]

1. c4 {[%clk 0:02:53]}  c6 {[%clk 0:02:58]} 2. d4 {[%clk 0:02:43]}  d5 {[%clk 0:02:58]} 3. Nc3 {[%clk 0:02:41]}  Nf6 {[%clk 0:02:58]} 4. Nf3 {[%clk 0:02:39]}  Qb6 {[%clk 0:02:57]} 5. c5 {[%clk 0:02:36]}  Qc7 {[%clk 0:02:55]} 6. Bg5 {[%clk 0:02:33]}  Bf5 {[%clk 0:02:54]} 7. e3 {[%clk 0:02:33]}  Nbd7 {[%clk 0:02:53]} 8. Bh4 {[%clk 0:02:31]}  b6 {[%clk 0:02:52]} 9. Bg3 {[%clk 0:02:31]}  Qb7 {[%clk 0:02:52]} 10. cxb6 {[%clk 0:02:28]}  axb6 {[%clk 0:02:51]} 11. Bd3 {[%clk 0:02:27]}  Bxd3 {[%clk 0:02:50]} 12. Qxd3 {[%clk 0:02:28]}  e6 {[%clk 0:02:50]} 13. O-O {[%clk 0:02:28]}  Be7 {[%clk 0:02:47]} 14. Rfc1 {[%clk 0:02:24]}  O-O {[%clk 0:02:47]} 15. a4 {[%clk 0:02:22]}  Rfc8 {[%clk 0:02:43]} 16. h3 {[%clk 0:02:17]}  h6 {[%clk 0:02:40]} 17. Rab1 {[%clk 0:02:12]}  c5 {[%clk 0:02:32]} 18. b3 {[%clk 0:01:59]}  Ne4 {[%clk 0:02:02]} 19. Bf4 {[%clk 0:01:47]}  c4 {[%clk 0:01:37]} 20. bxc4 {[%clk 0:01:45]}  Rxc4 {[%clk 0:01:38]} 21. Nd2 {[%clk 0:01:08]}  Nxd2 {[%clk 0:01:16]} 22. Qxd2 {[%clk 0:01:08]}  Bb4 {[%clk 0:01:15]} 23. Qb2 {[%clk 0:01:07]}  Bxc3 {[%clk 0:01:02]} 24. Rxc3 {[%clk 0:01:07]}  Raxa4 {[%clk 0:01:02]} 25. Rxc4 {[%clk 0:01:02]}  Rxc4 {[%clk 0:01:01]} 26. Qb5 {[%clk 0:01:00]}  Qc6 {[%clk 0:00:59]} 27. Qa6 {[%clk 0:00:56]}  Rc2 {[%clk 0:00:53]} 28. g4 {[%clk 0:00:51]}  g5 {[%clk 0:00:41]} 29. Bg3 {[%clk 0:00:51]}  Kg7 {[%clk 0:00:41]} 30. Qa7 {[%clk 0:00:44]}  Rc1+ {[%clk 0:00:34]} 31. Rxc1 {[%clk 0:00:44]}  Qxc1+ {[%clk 0:00:35]} 32. Kg2 {[%clk 0:00:44]}  Qc6 {[%clk 0:00:35]} 33. Qa6 {[%clk 0:00:37]}  f6 {[%clk 0:00:31]} 34. h4 {[%clk 0:00:31]}  Kf7 {[%clk 0:00:28]} 35. h5 {[%clk 0:00:31]}  e5 {[%clk 0:00:18]} 36. dxe5 {[%clk 0:00:28]}  fxe5 {[%clk 0:00:17]} 37. Kh2 {[%clk 0:00:27]}  Qe6 {[%clk 0:00:11]} 38. Qd3 {[%clk 0:00:24]}  e4 {[%clk 0:00:10]} 39. Qe2 {[%clk 0:00:23]}  Ne5 {[%clk 0:00:08]} 40. Bxe5 {[%clk 0:00:23]}  Qxe5+ {[%clk 0:00:09]} 41. Kh3 {[%clk 0:00:23]}  Qc7 {[%clk 0:00:06]} 42. Qb5 {[%clk 0:00:23]}  Qd6 {[%clk 0:00:03]} 43. Qa6 {[%clk 0:00:23]}  Ke7 {[%clk 0:00:02]} 44. Qb7+ {[%clk 0:00:23]}  Ke6 {[%clk 0:00:01]} 45. Qg7 {[%clk 0:00:22]} 1-0


[Site "https://www.chess.com"]

[Event "Titled Tuesday Blitz October 25 Late 2022"]
[White "Szpar, Milosz"]
[Black "Koellner, Ruben Gideon"]
[WhiteFideId "1184989"]
[BlackFideId "12993093"]
[WhiteElo "2422"]
[BlackElo "2303"]
[Result "0-1"]
[Round "05"]
[TimeControl "180+1"]
[Date "2022.10.26"]
[WhiteClock "0:00:02"]
[BlackClock "0:00:24"]

1. e4 {[%clk 0:02:54]}  d6 {[%clk 0:03:00]} 2. d4 {[%clk 0:02:52]}  Nf6 {[%clk 0:03:00]} 3. Nc3 {[%clk 0:02:51]}  e5 {[%clk 0:03:00]} 4. Nge2 {[%clk 0:02:42]}  Nc6 {[%clk 0:02:56]} 5. d5 {[%clk 0:02:36]}  Ne7 {[%clk 0:02:55]} 6. g3 {[%clk 0:02:32]}  g6 {[%clk 0:02:49]} 7. Bg2 {[%clk 0:02:32]}  Bg7 {[%clk 0:02:49]} 8. O-O {[%clk 0:02:32]}  O-O {[%clk 0:02:49]} 9. f4 {[%clk 0:02:29]}  exf4 {[%clk 0:02:39]} 10. gxf4 {[%clk 0:02:21]}  c6 {[%clk 0:02:39]} 11. dxc6 {[%clk 0:02:12]}  bxc6 {[%clk 0:02:37]} 12. h3 {[%clk 0:02:09]}  d5 {[%clk 0:02:22]} 13. e5 {[%clk 0:01:54]}  Qb6+ {[%clk 0:02:21]} 14. Kh2 {[%clk 0:01:54]}  Nh5 {[%clk 0:02:21]} 15. Bf3 {[%clk 0:01:42]}  f6 {[%clk 0:02:05]} 16. Bxh5 {[%clk 0:01:34]}  gxh5 {[%clk 0:02:05]} 17. Ng3 {[%clk 0:01:29]}  fxe5 {[%clk 0:02:00]} 18. Nxh5 {[%clk 0:01:29]}  Bh8 {[%clk 0:01:46]} 19. Rg1+ {[%clk 0:01:09]}  Ng6 {[%clk 0:01:44]} 20. Nxd5 {[%clk 0:01:07]}  cxd5 {[%clk 0:01:42]} 21. Qxd5+ {[%clk 0:00:54]}  Be6 {[%clk 0:01:38]} 22. Qe4 {[%clk 0:00:47]}  Bf5 {[%clk 0:01:21]} 23. Qc4+ {[%clk 0:00:39]}  Qe6 {[%clk 0:01:20]} 24. Qf1 {[%clk 0:00:34]}  e4 {[%clk 0:01:13]} 25. Be3 {[%clk 0:00:33]}  Bxb2 {[%clk 0:01:04]} 26. Rb1 {[%clk 0:00:33]}  Bh8 {[%clk 0:00:58]} 27. Rb5 {[%clk 0:00:25]}  Rac8 {[%clk 0:00:55]} 28. Rg5 {[%clk 0:00:06]}  Rxc2+ {[%clk 0:00:53]} 29. Kg3 {[%clk 0:00:05]}  h6 {[%clk 0:00:34]} 30. Qd1 {[%clk 0:00:03]}  Qxa2 {[%clk 0:00:24]} 31. Rbxf5 {[%clk 0:00:02]}  Rg2# {[%clk 0:00:24]} 0-1


[Site "https://www.chess.com"]

[Event "Titled Tuesday Blitz October 25 Late 2022"]
[White "Thiel, Thomas"]
[Black "Camacho Campusano, David Daniel"]
[WhiteFideId "4615964"]
[BlackFideId "6408885"]
[WhiteElo "2232"]
[BlackElo "2181"]
[Result "1-0"]
[Round "05"]
[TimeControl "180+1"]
[Date "2022.10.26"]
[WhiteClock "0:00:25"]
[BlackClock "0:00:05"]

1. e4 {[%clk 0:03:00]}  e5 {[%clk 0:02:59]} 2. Nf3 {[%clk 0:02:59]}  Nc6 {[%clk 0:02:59]} 3. d4 {[%clk 0:02:57]}  exd4 {[%clk 0:02:58]} 4. Nxd4 {[%clk 0:02:58]}  Bc5 {[%clk 0:02:58]} 5. Nb3 {[%clk 0:02:56]}  Bb6 {[%clk 0:02:57]} 6. Nc3 {[%clk 0:02:56]}  a5 {[%clk 0:02:57]} 7. a4 {[%clk 0:02:54]}  Nf6 {[%clk 0:02:56]} 8. Qe2 {[%clk 0:02:53]}  d6 {[%clk 0:02:54]} 9. Bg5 {[%clk 0:02:52]}  h6 {[%clk 0:02:51]} 10. Bh4 {[%clk 0:02:50]}  Be6 {[%clk 0:02:35]} 11. O-O-O {[%clk 0:02:49]}  g5 {[%clk 0:02:28]} 12. Bg3 {[%clk 0:02:47]}  Qe7 {[%clk 0:02:10]} 13. Nd5 {[%clk 0:02:39]}  Bxd5 {[%clk 0:02:01]} 14. exd5 {[%clk 0:02:40]}  Qxe2 {[%clk 0:01:58]} 15. Bxe2 {[%clk 0:02:41]}  Nb4 {[%clk 0:01:50]} 16. h4 {[%clk 0:02:10]}  O-O-O {[%clk 0:01:49]} 17. Bc4 {[%clk 0:01:56]}  Ne4 {[%clk 0:01:46]} 18. c3 {[%clk 0:01:43]}  Na6 {[%clk 0:01:36]} 19. Nd4 {[%clk 0:01:38]}  Nac5 {[%clk 0:01:24]} 20. Kc2 {[%clk 0:01:14]}  Nxa4 {[%clk 0:01:14]} 21. Bd3 {[%clk 0:01:00]}  Nxg3 {[%clk 0:01:00]} 22. fxg3 {[%clk 0:01:01]}  Nc5 {[%clk 0:00:55]} 23. Bf5+ {[%clk 0:01:00]}  Kb8 {[%clk 0:00:55]} 24. b4 {[%clk 0:00:53]}  axb4 {[%clk 0:00:54]} 25. cxb4 {[%clk 0:00:54]}  Nd7 {[%clk 0:00:54]} 26. Bxd7 {[%clk 0:00:52]}  Rxd7 {[%clk 0:00:55]} 27. hxg5 {[%clk 0:00:51]}  h5 {[%clk 0:00:53]} 28. Nf5 {[%clk 0:00:44]}  Rdd8 {[%clk 0:00:50]} 29. Nh6 {[%clk 0:00:42]}  Rde8 {[%clk 0:00:42]} 30. Rxh5 {[%clk 0:00:41]}  Re3 {[%clk 0:00:36]} 31. Rh3 {[%clk 0:00:36]}  Re5 {[%clk 0:00:29]} 32. Nxf7 {[%clk 0:00:31]}  Rxh3 {[%clk 0:00:17]} 33. gxh3 {[%clk 0:00:32]}  Re3 {[%clk 0:00:16]} 34. Rd3 {[%clk 0:00:28]}  Re2+ {[%clk 0:00:16]} 35. Kb3 {[%clk 0:00:27]}  Rh2 {[%clk 0:00:05]} 36. h4 {[%clk 0:00:25]} 1-0


[Site "https://www.chess.com"]

[Event "Titled Tuesday Blitz October 25 Late 2022"]
[White "Timmermans, Mark"]
[Black "Pinheiro, Iung Alicio de O."]
[WhiteFideId "1026399"]
[BlackFideId "2104350"]
[WhiteElo "2460"]
[BlackElo "2283"]
[Result "1-0"]
[Round "05"]
[TimeControl "180+1"]
[Date "2022.10.26"]
[WhiteClock "0:01:19"]
[BlackClock "0:00:01"]

1. b4 {[%clk 0:03:00]}  d5 {[%clk 0:02:54]} 2. Bb2 {[%clk 0:02:58]}  Bg4 {[%clk 0:02:54]} 3. Nf3 {[%clk 0:02:57]}  Bxf3 {[%clk 0:02:51]} 4. exf3 {[%clk 0:02:58]}  e6 {[%clk 0:02:50]} 5. c4 {[%clk 0:02:58]}  dxc4 {[%clk 0:02:43]} 6. Bxc4 {[%clk 0:02:59]}  Nf6 {[%clk 0:02:44]} 7. b5 {[%clk 0:02:59]}  Be7 {[%clk 0:02:31]} 8. O-O {[%clk 0:02:58]}  O-O {[%clk 0:02:31]} 9. a4 {[%clk 0:02:57]}  a6 {[%clk 0:02:31]} 10. d4 {[%clk 0:02:57]}  axb5 {[%clk 0:02:29]} 11. axb5 {[%clk 0:02:57]}  Rxa1 {[%clk 0:02:30]} 12. Bxa1 {[%clk 0:02:58]}  Nbd7 {[%clk 0:02:27]} 13. Nd2 {[%clk 0:02:58]}  Nb6 {[%clk 0:02:27]} 14. Bd3 {[%clk 0:02:58]}  Nbd5 {[%clk 0:02:16]} 15. g3 {[%clk 0:02:58]}  Qd7 {[%clk 0:02:06]} 16. Qb3 {[%clk 0:02:51]}  Ra8 {[%clk 0:01:56]} 17. Bb2 {[%clk 0:02:43]}  g6 {[%clk 0:01:55]} 18. f4 {[%clk 0:02:37]}  h5 {[%clk 0:01:49]} 19. Nc4 {[%clk 0:02:29]}  Nb6 {[%clk 0:01:37]} 20. Nxb6 {[%clk 0:02:22]}  cxb6 {[%clk 0:01:37]} 21. Bc4 {[%clk 0:02:23]}  Nd5 {[%clk 0:01:34]} 22. h4 {[%clk 0:02:21]}  Bf6 {[%clk 0:01:33]} 23. Rd1 {[%clk 0:02:16]}  Rd8 {[%clk 0:01:31]} 24. Be2 {[%clk 0:02:13]}  Ne7 {[%clk 0:01:17]} 25. d5 {[%clk 0:02:01]}  Bxb2 {[%clk 0:00:57]} 26. dxe6 {[%clk 0:02:00]}  Qxd1+ {[%clk 0:00:21]} 27. Bxd1 {[%clk 0:01:59]}  Bd4 {[%clk 0:00:15]} 28. exf7+ {[%clk 0:01:56]}  Kf8 {[%clk 0:00:15]} 29. Bc2 {[%clk 0:01:42]}  Kg7 {[%clk 0:00:11]} 30. Qe6 {[%clk 0:01:40]}  Bf6 {[%clk 0:00:10]} 31. Qxb6 {[%clk 0:01:27]}  Rd7 {[%clk 0:00:08]} 32. Qe6 {[%clk 0:01:25]}  Rd8 {[%clk 0:00:06]} 33. Be4 {[%clk 0:01:20]}  Rf8 {[%clk 0:00:02]} 34. Bxb7 {[%clk 0:01:19]}  Rxf7 {[%clk 0:00:03]} 35. Be4 {[%clk 0:01:19]}  Rf8 {[%clk 0:00:01]} 36. b6 {[%clk 0:01:19]} 1-0


[Site "https://www.chess.com"]